Cogmind - Beta 13 @@@ ROGUE MODE // 2024.04.02 @ 21:37:34 Player: Cacho Result: Destroyed by D-53 Grenadier with Mini Grenade Launcher Performance ------------- Evolutions (0) 0 Regions Visited (2) 400 Robots Destroyed (4) 20 Value Destroyed (41) 41 Prototype IDs (2) 40 Alien Tech Used (0) 0 Bonus (67) 67 TOTAL SCORE: 568 Bonus ------- Follower Combat Kills 67 Cogmind --------- Core Integrity 0/250 Matter 270/300 Energy 79/100 System Corruption 2% Temperature Cool (0) Movement Core (150) Ox2 Location -10/Mines Parts ------- > --- POWER (1) -------- (None) > --- PROPULSION (2) --- (None) > --- UTILITY (2) ------ Small Storage Unit Signal Interpreter > --- WEAPON (2) ------- Medium Laser Light Assault Rifle > --- INVENTORY (8) ---- Light Nuclear Core High-capacity Matter Pod (154) Hammer Peak State ------------ > --- POWER ------------ Light Nuclear Core > --- PROPULSION ------- Aluminum Leg Aluminum Leg > --- UTILITY ---------- Small Storage Unit Signal Interpreter > --- WEAPON ----------- Medium Laser Light Assault Rifle > --- INVENTORY -------- Light Nuclear Core Light Treads Light Treads Compact Wheel High-capacity Matter Pod Light Assault Rifle Grenade Launcher Hammer [Rating: 10] Favorites ----------- Power Ion Engine Engine Ion Engine Power Core Light Nuclear Core Propulsion Aluminum Leg Treads Light Treads Leg Aluminum Leg Utility Small Storage Unit Storage Small Storage Unit Processor Signal Interpreter Weapon Light Assault Rifle Energy Gun Medium Laser Ballistic Gun Light Assault Rifle Launcher Grenade Launcher Build | -11 -10 -10 ------- Run | Yrd Mat Min Slots Evolved . | . . . Power . | . . . Propulsion . | . . . Utility . | . . . Weapon . | . . . Parts Attached 8 | . 1 7 Power 2 | . . 2 Engine . | . . . Core 2 | . . 2 Reactor . | . . . Propulsion 2 | . . 2 Treads 2 | . . 2 Leg . | . . . Wheel . | . . . Hover . | . . . Flight . | . . . Utility 1 | . 1 . Device . | . . . Storage . | . . . Processor 1 | . 1 . Hackware . | . . . Protection . | . . . Artifact . | . . . Weapon 3 | . . 3 Energy Gun 1 | . . 1 Energy Cannon . | . . . Ballistic Gun 1 | . . 1 Ballistic Cannon . | . . . Launcher 1 | . . 1 Special Weapon . | . . . Impact Weapon . | . . . Slashing Weapon . | . . . Piercing Weapon . | . . . Special Melee Weapon . | . . . Unidentified Prototypes . | . . . Parts Lost 6 | . . 6 Power 1 | . . 1 Propulsion 3 | . . 3 Utility . | . . . Weapon 2 | . . 2 Highest Loss Streak 6 | . . 6 To Critical Strikes . | . . . Average Slot Usage (%) 97 | . 97 97 Engine 10 | . 14 6 Core 3 | . . 7 Leg 27 | . 28 26 Storage 14 | . 14 14 Processor 12 | . 11 14 Energy Gun 12 | . 14 11 Ballistic Gun 13 | . 14 13 Naked Turns . | . . . Heaviest Build 14 | 13 13 14 Greatest Support 40 | 20 20 40 Greatest Overweight (x) 2 | . . 2 Average Overweight (x) . | . . . Largest Inventory Capacity 8 | 8 8 8 Average Capacity 8 | 8 8 8 Most Carried 8 | 6 8 8 Average Carried 7 | 6 7 7 Final Capacity 8 | 8 8 8 Final Carried 8 | 6 8 3 Class Distribution -------------------- 100% | Mutant Dominant Class ---------------- Mutant | -10/Materials Mutant | -10/Mines Resources | -11 -10 -10 ----------- Run | Yrd Mat Min Matter Collected 420 | 200 16 204 Remotely . | . . . Salvage Created 59 | . 29 30 Parts 6 | . 4 2 Haulers Intercepted . | . . . Recyclers Shooed . | . . . Parts Field Recycled . | . . . Retrieved Matter . | . . . Parts Self-Destructed . | . . . Prevented . | . . . Kills | -11 -10 -10 ------- Run | Yrd Mat Min Combat Hostiles Destroyed 3 | . . 3 Guns 2 | . . 2 AOE 1 | . . 1 Classes Destroyed 4 | . 2 2 Builder 1 | . 1 . Watcher 1 | . 1 . Swarmer 2 | . . 2 Assembled 1 | . . 1 Best Kill Streak 2 | . 1 2 Combat Bots Only 2 | . . 2 Max Kills in Single Turn 1 | . 1 1 Gunslinging . | . . . Exploded 1 | . . 1 Melee . | . . . Uniques/NPCs Destroyed . | . . . Combat | -11 -10 -10 -------- Run | Yrd Mat Min Hostile Shots Fired 46 | . . 46 Missed 10 | . . 10 Damage Taken 998 | . . 998 Core 252 | . . 252 Absorbed by Shields . | . . . Core Remaining (%) 100 | 100 . . Volleys Fired 15 | . 8 7 Largest 2 | . 2 2 Hottest 70 | . 70 70 Shots Fired 29 | . 16 13 Gun 28 | . 16 12 Cannon . | . . . Launcher 1 | . . 1 Special . | . . . Kinetic 15 | . 8 7 Thermal 13 | . 8 5 Explosive 1 | . . 1 Electromagnetic . | . . . Robot Hit Streak 3 | . 3 2 Robot Miss Streak 3 | . 3 2 Penetration Max . | . . . Secondary Targets 1 | . . 1 Max Gunslinging Chain 1 | . . 1 Shots Hit Robots 14 | . 8 6 Core Hits 7 | . 3 4 Critical Kills . | . . . Critical Parts Destroyed . | . . . Critical Strikes . | . . . Melee Attacks . | . . . Impact . | . . . Slashing . | . . . Piercing . | . . . Sneak Attacks . | . . . Combat Hostiles . | . . . Follow-up Attacks . | . . . Damage Inflicted 198 | . 76 122 Guns 132 | . 76 56 Cannons . | . . . Explosions 65 | . . 65 Melee . | . . . Ramming 1 | . . 1 Kinetic 45 | . 27 18 Thermal 87 | . 49 38 Explosive 65 | . . 65 Electromagnetic . | . . . Impact . | . . . Slashing . | . . . Piercing . | . . . Highest Corruption 2 | . 2 2 Average Corruption 1 | . 1 2 Corruption Purged . | . . . Corruption Blocked . | . . . Effects 12 | . 5 7 Message Errors 2 | . . 2 Matter Fused 3 | . 2 1 Heat Flow Errors 2 | . 1 1 Data Loss (minor) 2 | . 1 1 Data Loss (major) 2 | . 1 1 Misfires 1 | . . 1 Overload Shots . | . . . Overflow Damage . | . . . Projectiles . | . . . Explosions . | . . . Melee . | . . . Knockbacks . | . . . Impact . | . . . Kinetic . | . . . Secondary . | . . . Self-Inflicted Damage . | . . . Shots . | . . . Rammed . | . . . Targets Rammed 1 | . . 1 Kicked 1 | . . 1 Crushed . | . . . Highest Temperature 281 | . 152 281 Average Temperature 62 | . 34 87 Received Heat Transfer 67 | . . 67 Siege Activations . | . . . Robots Corrupted . | . . . Combat Hostiles . | . . . Parts Fried . | . . . Impact Corruptions . | . . . Robots Melted . | . . . Combat Hostiles . | . . . Parts Melted 2 | . 1 1 Heat Transferred 259 | . 148 111 Parts Sabotaged . | . . . Parts Stolen . | . . . Parts Stripped . | . . . Power Chain Reactions . | . . . Alert | -11 -10 -10 ------- Run | Yrd Mat Min Peak Influence 111 | . 89 111 Initial 6 | . . 6 Average 28 | . 23 36 Maximum Alert Level . | . . . Low Security (%) 100 | 100 100 100 Level 1 . | . . . Level 2 . | . . . Level 3 . | . . . Level 4 . | . . . Level 5 . | . . . High Security . | . . . Max Security . | . . . Squads Dispatched 1 | . 1 . Investigation 1 | . 1 . Extermination . | . . . Reinforcement . | . . . Assault . | . . . Garrison . | . . . Intercept . | . . . Searches Triggered . | . . . Construction Impeded . | . . . Haulers Reinforced . | . . . Active Scanning Responses . | . . . Cargo Convoy Interrupts . | . . . Stealth | -11 -10 -10 --------- Run | Yrd Mat Min Distress Signals . | . . . Communications Jammed . | . . . Distress Signals . | . . . Times Spotted 22 | . 3 19 Peak Tracking Total 10 | . 2 10 Tactical Retreats . | . . . Traps | -11 -10 -10 ------- Run | Yrd Mat Min Traps Triggered 1 | . 1 . Indirectly . | . . . Trap Hack Attempts . | . . . Triggered . | . . . Disarmed . | . . . Reprogrammed . | . . . Reused . | . . . Traps Extracted . | . . . Installed . | . . . Triggered . | . . . Machines | -11 -10 -10 ---------- Run | Yrd Mat Min Machines Disabled . | . . . Max in Single Turn . | . . . Machines Repaired . | . . . Machines Dismantled . | . . . Machines Sabotaged . | . . . Overloaded Fab Kills . | . . . Hacking | -11 -10 -10 --------- Run | Yrd Mat Min Machines Accessed 6 | . 6 . Terminals 6 | . 6 . Fabricators . | . . . Repair Stations . | . . . Recycling Units . | . . . Scanalyzers . | . . . Garrison Access . | . . . Total Hacks 18 | . 18 . Successful 6 | . 6 . Failed 12 | . 12 . Catastrophic 2 | . 2 . Database Lockouts . | . . . Manual . | . . . Terminals 18 | . 18 . Fabricators . | . . . Repair Stations . | . . . Recycling Units . | . . . Scanalyzers . | . . . Garrison Access . | . . . Terminal Hacks 6 | . 6 . Record 1 | . 1 . Prototype ID Bank 1 | . 1 . Emergency Access Points 1 | . 1 . Dispatch Records 2 | . 2 . Hauler Manifests 1 | . 1 . Fabricator Hacks . | . . . Repair Station Hacks . | . . . Recycling Unit Hacks . | . . . Scanalyzer . | . . . Garrison Access Hacks . | . . . Unauthorized Hacks . | . . . Terminals . | . . . Fabricators . | . . . Repair Stations . | . . . Recycling Units . | . . . Scanalyzers . | . . . Garrison Access . | . . . Data Cores Recovered . | . . . Used . | . . . Hacking Detections 6 | . 6 . Full Trace Events 2 | . 2 . Feedback Events 1 | . 1 . Corruption 1 | . 1 . Feedback Blocked . | . . . Robot Schematics Acquired . | . . . Robots Built . | . . . Authchips . | . . . Time . | . . . Total Robot Build Rating . | . . . Part Schematics Acquired . | . . . Parts Built . | . . . Authchips . | . . . Time . | . . . Total Part Build Rating . | . . . Parts Repaired . | . . . Time . | . . . Parts Recycled . | . . . Recycled Matter . | . . . Retrieved Matter . | . . . Retrieved Components . | . . . Parts Scanalyzed . | . . . Part Schematics Acquired . | . . . Parts Damaged . | . . . Bothacking | -11 -10 -10 ------------ Run | Yrd Mat Min Used RIF Installer . | . . . Robots Hacked . | . . . Non-combat . | . . . Combat . | . . . Robot Hacks Applied . | . . . Relay Couplers Released . | . . . Fabnet Peak Effective % . | . . . Robots Rewired . | . . . Allies Hacked . | . . . Hacks Repelled . | . . . Allies | -11 -10 -10 -------- Run | Yrd Mat Min Total Allies 3 | . . 3 Largest Group 3 | . . 3 Highest-Rated Group 40 | . . 40 Highest-Rated Ally 16 | . . 16 Total Orders . | . . . Ally Attacks 16 | . . 16 Total Damage 160 | . . 160 Kills 3 | . . 3 Allies Corrupted . | . . . Allies Melted . | . . . Intel | -11 -10 -10 ------- Run | Yrd Mat Min Robot Analysis Total . | . . . Derelict Logs Recovered 1 | . . 1 Drone Launches . | . . . Drone Recoveries . | . . . Exploration | -11 -10 -10 ------------- Run | Yrd Mat Min Turns Passed 877 | 29 487 361 Spaces Moved 621 | 25 339 257 Core 1 | . . 1 Treads 11 | . . 11 Legs 609 | 25 339 245 Wheels . | . . . Hover . | . . . Flight . | . . . Fastest Speed 120 | 120 120 120 Average Speed 120 | 120 120 122 Slowest Speed 190 | 120 120 190 Overloaded Moves . | . . . Propulsion Burnouts . | . . . Robots Hopped . | . . . Cave-ins Triggered . | . . . Exploration Rate (%) 50 | 3 71 78 Regions Visited 2 Branch Regions 1 Pre-discovered Areas . | . . . Known Exits Taken 1 | . 1 . Unknown Exits Taken 1 | 1 . . Scrap Searched . | . . . Spaces Dug . | . . . Terrain Destroyed 7 | . . 7 Melee . | . . . Projectile . | . . . AOE 7 | . . 7 Terrain Rammed . | . . . Walls Destroyed . | . . . Machines Disabled . | . . . Actions | -11 -10 -10 --------- Run | Yrd Mat Min Total 721 | 24 405 292 Wait 71 | . 54 17 Move 619 | 24 338 257 Hop . | . . . Pick Up 3 | . 3 . Fast Attach 2 | . 1 1 Attach 4 | . . 4 Detach . | . . . Swap 2 | . . 2 Drop 4 | . 1 3 Fire 15 | . 8 7 Melee . | . . . Ram . | . . . Kick 1 | . . 1 Crush . | . . . Escape Stasis . | . . . Rewire . | . . . Trap . | . . . Miscellaneous . | . . . Route ------- -11/Scrapyard -10/Materials (discovered 2 exits: *Mat / *Min) -10/Mines (discovered 1 exit: *Mat) History --------- Turn | Location | Event 1 | -11/Scrapyard | Discovered new exit (range 3) 30 | -11/Scrapyard | Entered Materials 311 | -10/Materials | Build established: Mutant 410 | -10/Materials | Discovered new exit (range 11) 437 | -10/Materials | Identified exit to Materials 483 | -10/Materials | Discovered new exit (range 8) 490 | -10/Materials | Identified exit to Mines 517 | -10/Materials | Entered Mines 517 | -10/Mines | Assisted by bots powering up and referring to "LRC-V3" 741 | -10/Mines | Discovered exit to Materials (range 9) 802 | -10/Mines | Assembled infested the area 858 | -10/Mines | Core integrity fell below 50% 867 | -10/Mines | Core integrity fell below 20% 878 | -10/Mines | Destroyed by D-53 Grenadier with Mini Grenade Launcher Last Messages --------------- 00836_ as-17771 destroyed. 00840_ The unstable cave ceiling collapses. 00841_ as-94252 destroyed. 00843_ as-50368 destroyed. 00845_ as-29999 destroyed. 00846_ as-64698 destroyed. 00847_ Aluminum Leg severed. 00848_ The unstable cave ceiling collapses. 00850_ Grenade Launcher destroyed. 00850_ as-79602 destroyed. 00851_ Lgt. Assault Rifle destroyed. 00855_ Aluminum Leg destroyed. 00855_ Lgt. Nuclear Core destroyed. 00859_ The unstable cave ceiling collapses. 00860_ as-76221 destroyed. 00861_ The unstable cave ceiling collapses. 00870_ Lgt. Treads destroyed. 00872_ The unstable cave ceiling collapses. 00876_ Lgt. Treads destroyed. 00878_ The unstable cave ceiling collapses. Map ----- +----------------------------------------------------+ | | | | | | | | | | | ???????????????????????????????????????????????? | | ???????????????????????????????????????????????? | | ???????????????????????????????????????????????? | | ???????????????????????????????????????????????? | | ???????????????????????????????????????????????? | | ???????????????????????????????????????????????? | | ???????????????????????????????????????????????? | | ?????????????????????????????####??????????????? | | ????????????????????????????## ##?????????????? | | ???????????????????????????## #?????????????? | | ????????????????????###???## ##????????????? | | ???????????????????## #### ###??????????? | | ???????????????????# ###?????????? | | ???????????????????# #?????????? | | ???????????????????# # ####???????? | | ???????????????????# ##??????? | | ???????????????????# d # #??????? | | ??????????????????## d #??????? | | ??????????????????# ###????? | | ??????????????????# # ##???? | | ??????????????????# @ ## #???? | | ??????????????????# # #### < ##### | | ??????????????????## ##??# % | | ???????????????????## ##???## % | | ????????????????????#######?????# # ###### | | ?????????????????????####???????# # #????? | | ????????????????????## ##????#? # # #????? | | ????????????######### ###### ##???? | | ????????????#!=[ =%=" ## #???? | | ????????????#*#####[* ## ## #???? | | ????????????#=#???#[ # #???? | | ????????????#*#???## ### #???? | | ????????????# #????#####?## #??? | | ????????????# #??###??????# [! #??? | | ????????????# #?## ##?????# =%= ##??? | | ????????????# ### #?????## ### ! ##???? | | ???????????## ## #??????#####?# #????? | | ???????????# ##????????????## ##????? | | ???????????## #?????????????# #?????? | | ????????????#### #?????????????# #????? | | ???????????????## #?????????????#### ????? | | ????????????????# < ##?????????????????# ????? | | ????????????????## #??????????????????# ##### | | ?????????????????# ##??????????????????# ## | | ?????????????????## #??????????????????# | +----------------------------------------------------+ Best States ------------- Heat Dissipation 25 Energy Generation 14 Energy Capacity 250 Matter Stores 300 Matter Capacity 300 Sight Range 16 Terrain Scan Density 10 Evasion (%) 55 Recoil Reduction 2 Item Schematics ----------------- None Robot Schematics ------------------ None Fabricated ------------ Nothing Alien Tech Used ----------------- None Achievements -------------- None Challenges ------------ None Game ------ Seed SigixPhysicsCalibrator Manual? 0 Play Time 00:17:03 Cumulative 16.9 hours Start 2024.04.02 @ 21:12:52 End 2024.04.02 @ 21:37:34 Sessions 1 Manual Loads 0 Difficulty Rogue Special Mode None Game No. 13 Rogue 12 Adventurer 1 Explorer 0 Win Type - Total 0 Types 0/0/0/0/0/0/0/0/0 Lore% 18 Gallery% 20 Achievement% 18 Wizard Run 0 Options --------- Layout 0 ASCII 1 Keyboard 0 Movement Numpad Keybinds 0 Fullscreen 2 Font 18/SmallcapsGlow Map View 76x50 Zoom Use 0% Tactical HUD 1 Map Filters NONE Filters NONE Steam 1 RUN: 2c271444-86b8-4808-920f-2fea8f931d52